bitfinex-derivatives/quotes_BTCF0:USTF0_20250207
["timestamp","ask_amount","ask_price","bid_price","bid_amount"]
[1738886625285,0.1954846,96733.0,96732.0,0.2067465]
[1738886625693,0.04135,96733.0,96732.0,0.2067465]
[1738886626187,0.00015515,96736.0,96726.0,0.001]
[1738886626688,0.00841515,96736.0,96729.0,0.2067508]
[1738886627084,0.00841515,96736.0,96732.0,0.2067465]
[1738886627286,0.04975515,96736.0,96726.0,0.0344]
[1738886627492,0.04975515,96736.0,96734.0,0.2067408]
[1738886628094,0.05075515,96736.0,96734.0,0.2067408]
[1738886628293,0.00941515,96736.0,96734.0,0.2067408]
[1738886628598,0.00841515,96736.0,96735.0,0.0319]
[1738886628787,0.00841515,96736.0,96735.0,0.0632]
[1738886629093,0.00941515,96736.0,96735.0,0.0632]
[1738886631087,0.3608,96758.0,96740.0,0.2067294]
[1738886631288,0.36992124,96758.0,96740.0,0.2067294]
[1738886631991,0.04134,96746.0,96740.0,0.2067294]
[1738886632196,0.00555114,96741.0,96740.0,0.2067294]
[1738886635391,4e-08,96742.0,96740.0,0.2067294]
[1738886636798,0.00300004,96742.0,96740.0,0.2067294]
[1738886637597,0.00400004,96742.0,96740.0,0.2067294]
[1738886640090,4e-08,96742.0,96740.0,0.2067294]
[1738886640296,1e-08,96750.0,96749.0,0.2067102]
[1738886640486,1e-08,96750.0,96749.0,0.5675102]
[1738886641093,1e-08,96750.0,96749.0,0.6197102]
[1738886641286,0.00200001,96750.0,96749.0,0.6197102]
[1738886641491,0.00800001,96750.0,96749.0,0.6207102]
[1738886643096,0.00800001,96750.0,96749.0,0.5685102]
[1738886643294,0.00800001,96750.0,96749.0,0.2077102]
[1738886643805,0.00800001,96750.0,96749.0,0.001]
[1738886643995,0.2067224,96744.0,96740.0,0.00015507]
[1738886644200,0.032,96749.0,96740.0,0.00015507]
[1738886644499,0.032,96749.0,96744.0,0.2067202]
[1738886645199,0.032,96749.0,96745.0,0.2067179]
[1738886645591,0.032,96749.0,96747.0,0.2067131]
[1738886645807,0.036,96749.0,96747.0,0.2067131]
[1738886646298,0.01226,96749.0,96747.0,0.2067131]
[1738886647202,0.00826,96749.0,96747.0,0.2067131]
[1738886647402,0.01326,96749.0,96747.0,0.2067131]
[1738886647703,0.01426,96749.0,96747.0,0.2067131]
[1738886647897,0.01526,96749.0,96747.0,0.2077131]
[1738886649106,1e-08,96750.0,96749.0,0.2067102]
[1738886650702,0.00500001,96750.0,96749.0,0.2067102]
[1738886655804,0.10310001,96750.0,96749.0,0.2067102]
[1738886656311,0.10310001,96750.0,96748.0,0.3608]
[1738886656505,0.10310001,96750.0,96749.0,0.2067102]
[1738886657495,0.09810001,96750.0,96749.0,0.2067102]
[1738886657808,0.10310001,96750.0,96749.0,0.2067102]
[1738886658105,0.09810001,96750.0,96749.0,0.2067102]
[1738886658406,0.10310001,96750.0,96749.0,0.2067102]
[1738886658705,0.10310001,96750.0,96745.0,0.3608]
[1738886658897,0.30980931,96750.0,96745.0,0.3608]
[1738886659094,0.10310001,96750.0,96742.0,0.24661391]
[1738886659306,0.3608,96743.0,96742.0,0.24661391]
[1738886659906,0.3608,96743.0,96742.0,0.11460732]
[1738886660909,0.3638,96743.0,96742.0,0.06230732]
[1738886661210,0.2067358,96737.0,96736.0,0.30761917]
[1738886661507,0.5675358,96737.0,96736.0,0.22341917]
[1738886662312,0.3608,96737.0,96727.0,0.00015507]
[1738886662612,0.04134,96737.0,96732.0,0.3608]
[1738886662805,0.04134,96737.0,96736.0,0.2067379]
[1738886663414,0.04134,96737.0,96733.0,0.0662]
[1738886664019,0.04434,96737.0,96733.0,0.0662]
[1738886664205,0.04434,96737.0,96736.0,0.2067379]
[1738886664909,0.04134,96737.0,96736.0,0.2067379]
[1738886666514,0.04234,96737.0,96736.0,0.2067379]
[1738886667017,0.04134,96737.0,96736.0,0.2067379]
[1738886667213,0.04234,96737.0,96736.0,0.2067379]
[1738886667511,1e-08,96750.0,96748.0,0.2067123]
[1738886667715,1e-08,96750.0,96748.0,0.5675123]
[1738886668105,1e-08,96750.0,96740.0,0.12325352]
[1738886668305,0.2067116,96749.0,96741.0,0.2067258]
[1738886668908,0.2067189,96745.0,96741.0,0.2067258]
[1738886669112,0.2067254,96742.0,96737.0,0.3623]
[1738886669702,0.0322,96748.0,96737.0,0.3623]
[1738886670513,0.001,96742.0,96733.0,0.0335]
[1738886670714,0.2067294,96740.0,96730.0,0.39191041]
[1738886671223,0.2067294,96740.0,96731.0,0.2067478]
[1738886671516,0.3608,96746.0,96731.0,0.2067478]
[1738886672109,0.40214,96746.0,96734.0,0.206742]
[1738886672309,0.40214,96746.0,96741.0,0.2067253]
[1738886673610,0.40214,96746.0,96731.0,0.001]
[1738886673914,0.40214,96746.0,96744.0,0.2067208]
[1738886674119,0.04334,96746.0,96745.0,0.0331]
[1738886674319,0.002,96746.0,96745.0,0.0331]
[1738886674523,0.002,96746.0,96745.0,0.0667]
[1738886675515,0.002,96746.0,96745.0,0.4275]
[1738886675705,1e-08,96750.0,96745.0,0.6487]
[1738886675909,0.1541346,96768.0,96765.0,0.206676]
[1738886677521,0.00755083,96766.0,96765.0,0.207676]
[1738886679610,0.04133,96770.0,96765.0,0.5845]
[1738886679821,0.00015507,96775.0,96774.0,0.2066568]
[1738886680020,0.00015507,96775.0,96774.0,0.5674568]
[1738886680914,0.00215507,96775.0,96774.0,0.5674568]
[1738886682323,0.04133,96781.0,96774.0,0.5674568]
[1738886682324,0.04133,96781.0,96774.0,0.3608]
[1738886682522,0.04133,96781.0,96780.0,0.2066439]
[1738886682821,0.1541346,96790.0,96776.0,0.3608]
[1738886683118,0.1541346,96790.0,96789.0,0.5674247]
[1738886683324,0.1,96800.0,96799.0,0.2066034]
[1738886684616,0.1,96800.0,96799.0,0.2076034]
[1738886685326,0.1,96800.0,96799.0,0.5684034]
[1738886686511,0.1,96800.0,96799.0,0.7896034]
[1738886687127,0.1,96800.0,96799.0,0.7886034]
[1738886692321,0.1,96800.0,96799.0,0.2212]
[1738886693218,0.10974261,96800.0,96799.0,0.2212]
[1738886697632,0.1,96800.0,96799.0,0.2212]
[1738886697823,0.1,96800.0,96799.0,0.257]
[1738886698626,0.1,96800.0,96799.0,0.2944]
[1738886701127,0.1,96800.0,96799.0,0.257]
[1738886703931,0.1,96800.0,96799.0,0.2212]
[1738886704136,0.4608,96800.0,96799.0,0.2212]
[1738886704324,0.2066175,96793.0,96781.0,0.2212]
[1738886704839,0.59310691,96800.0,96787.0,0.2066276]
[1738886705033,0.2066039,96799.0,96788.0,0.2066264]
[1738886705238,0.206606,96798.0,96781.0,0.2212]
[1738886705429,0.4701348,96800.0,96798.0,0.2066055]
[1738886705629,0.1,96800.0,96798.0,0.2066055]
[1738886708540,0.12582,96800.0,96798.0,0.2066055]
[1738886709741,0.12582,96800.0,96798.0,0.2086055]
[1738886710134,0.12582,96800.0,96798.0,0.2076055]
[1738886711347,0.12582,96800.0,96798.0,0.2086055]
[1738886711635,0.16714,96800.0,96798.0,0.2086055]
[1738886712739,0.16714,96800.0,96798.0,0.2066055]
[1738886713036,0.16714,96800.0,96798.0,0.2076055]
[1738886714437,0.16714,96800.0,96798.0,0.2066055]
[1738886714643,0.16714,96800.0,96798.0,0.2086055]
[1738886717238,0.16714,96800.0,96798.0,0.2066055]
[1738886717437,0.16714,96800.0,96798.0,0.4298055]
[1738886717637,0.16714,96800.0,96799.0,0.18516011]
[1738886719248,0.16714,96800.0,96799.0,0.18616011]
[1738886721229,0.16714,96800.0,96799.0,0.001]
[1738886721435,0.16714,96800.0,96799.0,0.3618]
[1738886721436,1e-07,96800.0,96799.0,0.3618]
[1738886721634,0.2065252,96836.0,96831.0,0.2065351]
[1738886722035,0.16372605,96832.0,96819.0,0.3608]
[1738886722249,0.2065378,96830.0,96825.0,0.2065478]
[1738886722448,0.2065378,96830.0,96819.0,0.3608]
[1738886722449,0.2065378,96830.0,96827.0,0.206543]
[1738886722641,0.2065378,96830.0,96828.0,0.2065406]
[1738886723041,0.16372605,96832.0,96831.0,0.2065351]
[1738886723238,0.1541346,96832.0,96831.0,0.5673351]
[1738886723440,0.1541346,96832.0,96831.0,0.2065351]
[1738886725444,0.00107,96837.0,96836.0,0.2065244]
[1738886726150,0.00950397,96843.0,96836.0,0.2065244]
[1738886726151,0.2065155,96841.0,96836.0,0.2065244]
[1738886726650,0.2065155,96841.0,96836.0,0.2075244]
[1738886726943,0.1541346,96844.0,96836.0,0.001]
[1738886727146,0.16372241,96844.0,96842.0,0.2065107]
[1738886727348,0.16479241,96844.0,96842.0,0.2065107]
[1738886728253,0.16372241,96844.0,96842.0,0.2065107]
[1738886728453,0.1541346,96844.0,96842.0,0.2065107]
[1738886729449,0.1541346,96844.0,96842.0,0.2075107]
[1738886729847,0.00932201,96847.0,96846.0,0.2065031]
[1738886730153,0.00096,96848.0,96846.0,0.2065031]
[1738886730538,0.1900346,96863.0,96851.0,0.2064924]
[1738886730748,0.00931048,96853.0,96851.0,0.2064924]
[1738886731253,0.1541346,96863.0,96851.0,0.2064924]
[1738886731751,0.00084,96856.0,96851.0,0.2064924]
[1738886732854,0.00084,96856.0,96851.0,0.2074924]
[1738886733239,0.00084,96856.0,96851.0,0.2064924]
[1738886733440,0.00084,96856.0,96851.0,0.2074924]
[1738886734750,0.00084,96856.0,96851.0,0.5682924]
[1738886734945,0.00084,96856.0,96855.0,0.2064839]
[1738886735358,0.2064594,96867.0,96851.0,0.3618]
[1738886735653,0.0258,96867.0,96851.0,0.3618]
[1738886735850,0.2064762,96859.0,96856.0,0.2064809]
[1738886736258,0.3608,96862.0,96859.0,0.206474]
[1738886736454,0.00061,96860.0,96854.0,0.206484]
[1738886737856,0.2064839,96855.0,96851.0,0.5682915]
[1738886738355,0.2064839,96855.0,96851.0,0.2074915]
[1738886738757,0.2064839,96855.0,96852.0,0.2064897]
[1738886739158,0.00061,96860.0,96853.0,0.2064878]
[1738886739359,0.00061,96860.0,96857.0,0.2064792]
[1738886739552,0.00061,96860.0,96844.0,0.2212]
[1738886739553,0.00061,96860.0,96850.0,0.12297211]
[1738886739746,0.2064796,96858.0,96852.0,0.2064899]
[1738886740157,0.2064796,96858.0,96853.0,0.2064876]
[1738886740461,0.2064796,96858.0,96853.0,0.2074876]
[1738886740855,0.00061,96860.0,96856.0,0.3608]
[1738886741055,0.00061,96860.0,96859.0,0.2064754]
[1738886741251,0.0258,96867.0,96857.0,0.037]
[1738886741556,0.0258,96867.0,96866.0,0.2064605]
[1738886743647,0.0258,96867.0,96866.0,0.2074605]
[1738886746161,0.1,96900.0,96866.0,0.001]
[1738886746352,0.1,96900.0,96870.0,0.17458501]
[1738886746554,0.2064189,96886.0,96884.0,0.2064214]
[1738886746751,0.22297211,96900.0,96870.0,0.17458501]
[1738886746949,0.20796571,96887.0,96885.0,0.2064196]
[1738886747355,0.2064287,96881.0,96870.0,0.12297211]
[1738886747961,0.206438,96877.0,96873.0,0.2064443]
[1738886748267,0.2064268,96882.0,96867.0,0.0001549]
[1738886748656,0.2064268,96882.0,96878.0,0.2064339]
[1738886748864,0.2064268,96882.0,96879.0,0.2064326]
[1738886750067,0.03710345,96887.0,96870.0,0.12297211]
[1738886750361,0.02734911,96887.0,96886.0,0.2064179]
[1738886754468,0.23376611,96887.0,96885.0,0.2064196]
[1738886755165,0.02734911,96887.0,96885.0,0.2064196]
[1738886755667,0.02734911,96887.0,96886.0,0.0371]
[1738886758663,0.2064249,96883.0,96880.0,0.2212]
[1738886758863,0.2064267,96882.0,96880.0,0.2212]
[1738886759263,0.2064267,96882.0,96880.0,0.4276301]
[1738886759962,0.3608,96881.0,96880.0,0.2212]
[1738886760557,0.2064562,96868.0,96867.0,0.0001549]
[1738886760873,0.5672562,96868.0,96867.0,0.0001549]
[1738886761261,0.5672562,96868.0,96860.0,0.18490231]
[1738886761262,0.2064712,96861.0,96860.0,0.18490231]
[1738886762868,0.2064712,96861.0,96860.0,0.18890231]
[1738886763069,0.0785,96867.0,96865.0,0.2064608]
[1738886763275,0.0395,96867.0,96865.0,0.2064608]
[1738886763666,0.2459586,96867.0,96860.0,0.18990231]
[1738886763867,0.2064695,96862.0,96860.0,0.18990231]
[1738886764070,0.0395,96867.0,96860.0,0.18990231]
[1738886764278,0.0395,96867.0,96864.0,0.2064636]
[1738886764471,0.0395,96867.0,96860.0,0.18990231]
[1738886764675,0.2064606,96866.0,96860.0,0.005]
[1738886765173,0.2064606,96866.0,96860.0,0.001]
[1738886765367,0.2064606,96866.0,96865.0,0.003]
[1738886765569,0.37040494,96868.0,96865.0,0.003]
[1738886765870,0.37040494,96868.0,96865.0,0.001]
[1738886766072,0.00015461,96870.0,96860.0,0.004]
[1738886766280,0.00015461,96870.0,96869.0,0.2064542]
[1738886768586,0.00015461,96870.0,96869.0,0.2074542]
[1738886769280,0.00015461,96870.0,96869.0,0.2169014]
[1738886769972,0.00015461,96870.0,96869.0,0.2074542]
[1738886772677,0.00015461,96870.0,96869.0,0.4286542]
[1738886773173,0.00015461,96870.0,96869.0,0.53446302]
[1738886780884,1e-08,96870.0,96869.0,0.53446302]
[1738886784188,1e-08,96870.0,96869.0,0.89676302]
[1738886784385,0.1,96900.0,96899.0,0.1805902]
[1738886784585,0.1541346,96909.0,96908.0,0.206371]
[1738886787283,0.00984344,96911.0,96899.0,0.48532691]
[1738886787482,0.3608,96925.0,96899.0,0.48392691]
[1738886787680,0.2063528,96917.0,96907.0,0.2063713]
[1738886787874,0.2063528,96917.0,96910.0,0.2063662]
[1738886788075,0.04716062,96914.0,96912.0,0.2063613]
[1738886789591,0.04716062,96914.0,96912.0,0.2073613]
[1738886790482,0.00956062,96914.0,96912.0,0.2073613]
[1738886790690,0.3608,96925.0,96912.0,0.2073613]
[1738886790691,0.0387,96924.0,96914.0,0.2063583]
[1738886790885,0.0387,96924.0,96912.0,0.001]
[1738886791092,0.0387,96924.0,96920.0,0.2063455]
[1738886791292,0.0396,96921.0,96920.0,0.2063455]
[1738886791795,0.04935419,96921.0,96920.0,0.2063455]
[1738886792190,0.04935419,96921.0,96920.0,0.2073455]
[1738886794388,0.00975419,96921.0,96920.0,0.2073455]
[1738886794695,0.2063068,96939.0,96928.0,0.2063285]
[1738886795785,0.01116108,96929.0,96928.0,0.2073285]
[1738886795989,0.00154826,96929.0,96928.0,0.2073285]
[1738886799399,0.00154826,96929.0,96928.0,0.001]
[1738886801495,0.00154826,96929.0,96927.0,0.20633]
[1738886802792,0.00154826,96929.0,96922.0,0.2063393]
[1738886802990,0.2063293,96928.0,96922.0,0.2063393]
[1738886803696,0.2063359,96925.0,96922.0,0.2063393]
[1738886804997,0.2063359,96925.0,96923.0,0.2063389]
[1738886805196,0.00154826,96929.0,96919.0,0.0001548]
[1738886805399,0.00154826,96929.0,96927.0,0.2063301]
[1738886807607,0.00572826,96929.0,96927.0,0.2063301]
[1738886807898,0.00572826,96929.0,96927.0,0.21611783]
[1738886809315,0.3608,96958.0,96927.0,0.00978773]
[1738886809500,0.3608,96958.0,96950.0,0.2062808]
[1738886809799,0.37052092,96958.0,96951.0,0.0379]
[1738886810198,0.1541346,96973.0,96957.0,0.3608]
[1738886810399,0.1541346,96973.0,96969.0,0.2062393]
[1738886811101,0.1541346,96973.0,96961.0,0.0799]
[1738886813703,0.206225,96977.0,96961.0,0.26717445]
[1738886813902,0.00975384,96979.0,96961.0,0.26717445]
[1738886814104,0.3608,96980.0,96961.0,0.18527445]
[1738886814105,0.2062516,96965.0,96961.0,0.18527445]
[1738886814309,0.2062516,96965.0,96961.0,0.18627445]
[1738886815005,0.2062547,96963.0,96961.0,0.18527445]
[1738886815308,0.3608,96962.0,96961.0,0.18527445]
[1738886815506,0.3992,96962.0,96961.0,0.02891154]
[1738886816209,0.6992,96962.0,96961.0,0.02891154]
[1738886816412,0.6992,96962.0,96938.0,0.24653642]
[1738886816710,0.3608,96945.0,96938.0,0.24653642]
[1738886817103,0.5670923,96945.0,96938.0,0.24653642]
[1738886817608,0.5670923,96945.0,96944.0,0.00215471]
[1738886818107,0.3608,96945.0,96944.0,0.00815471]
[1738886819302,0.4431,96945.0,96944.0,0.00815471]
[1738886819601,0.4431,96945.0,96944.0,0.00215471]
[1738886819802,0.4431,96945.0,96944.0,0.00815471]
[1738886821001,0.45270119,96945.0,96944.0,0.00815471]
[1738886821209,0.75270119,96945.0,96944.0,0.00815471]
[1738886821914,0.45270119,96945.0,96944.0,0.00815471]
[1738886822412,0.75270119,96945.0,96944.0,0.00815471]
[1738886822907,0.2063221,96931.0,96930.0,0.00154746]
[1738886823102,0.2063712,96908.0,96906.0,0.0398]
[1738886823301,0.3608,96907.0,96906.0,0.0398]
[1738886824405,0.3608,96907.0,96906.0,0.0488]
[1738886824606,0.3608,96907.0,96906.0,0.2551753]
[1738886825010,0.3608,96907.0,96906.0,0.2571753]
[1738886826102,0.3608,96907.0,96906.0,0.008]
[1738886826608,0.3608,96907.0,96906.0,0.001]
[1738886826907,0.3608,96907.0,96906.0,0.006]
[1738886828316,0.00986326,96910.0,96907.0,0.2063732]
[1738886828504,0.3608,96914.0,96906.0,0.006]
[1738886828709,0.00015409,96916.0,96914.0,0.2063572]
[1738886829008,0.00015409,96916.0,96906.0,0.2123735]
[1738886829413,0.00015409,96916.0,96906.0,0.006]
[1738886829713,0.2063613,96913.0,96906.0,0.006]
[1738886829909,0.2063613,96913.0,96906.0,0.001]
[1738886830418,0.2063613,96913.0,96907.0,0.002]
[1738886831000,0.2063613,96913.0,96906.0,0.2083752]
[1738886831207,0.3608,96915.0,96907.0,0.2063715]
[1738886831404,0.3608,96915.0,96906.0,0.008]
[1738886831603,0.01009523,96916.0,96906.0,0.008]
[1738886831604,0.00015409,96916.0,96906.0,0.008]
[1738886831817,0.00015409,96916.0,96914.0,0.2063569]
[1738886832912,0.00015409,96916.0,96915.0,0.0402]
[1738886833118,0.00015409,96916.0,96915.0,0.0815]
[1738886834407,0.00015409,96916.0,96915.0,0.0845]
[1738886834609,0.00015409,96916.0,96915.0,0.4453]
[1738886834807,0.0502,96941.0,96915.0,0.4453]
[1738886835011,0.2063035,96940.0,96920.0,0.12297211]
[1738886835221,0.37073455,96934.0,96930.0,0.2063231]
[1738886835524,0.37073455,96934.0,96932.0,0.206318]
[1738886836414,0.00993455,96934.0,96932.0,0.206318]
[1738886836613,0.3608,96943.0,96937.0,0.2063079]
[1738886837118,0.3608,96943.0,96923.0,0.00015471]
[1738886837324,0.002,96934.0,96929.0,0.206325]
[1738886837822,0.2063125,96936.0,96929.0,0.206325]
[1738886838027,0.37163059,96943.0,96923.0,0.00015471]
[1738886838028,0.3608,96935.0,96923.0,0.00015471]
[1738886838318,0.2063359,96925.0,96923.0,0.00015471]
[1738886839414,0.0403,96924.0,96923.0,0.00115471]
[1738886840215,0.0403,96924.0,96923.0,0.00015471]
[1738886840723,0.0413,96924.0,96923.0,0.00015471]
[1738886846413,0.04135256,96924.0,96923.0,0.00015471]
[1738886846814,0.00105256,96924.0,96923.0,0.00015471]
[1738886847015,0.00105256,96924.0,96923.0,0.08265471]
[1738886849124,5.256e-05,96924.0,96923.0,0.08265471]
[1738886849517,5.256e-05,96924.0,96923.0,0.08365471]
[1738886850125,5.256e-05,96924.0,96923.0,0.08265471]
[1738886850423,5.256e-05,96924.0,96923.0,0.08565471]
[1738886851418,5.256e-05,96924.0,96923.0,0.08465471]
[1738886852621,0.20638956,96924.0,96923.0,0.00215471]
[1738886853225,0.24628956,96924.0,96923.0,0.00200061]
[1738886853919,0.24628956,96924.0,96923.0,6.1e-07]
[1738886854222,0.24728956,96924.0,96923.0,6.1e-07]
[1738886857824,0.40142416,96924.0,96923.0,6.1e-07]
[1738886862231,0.25742956,96924.0,96923.0,6.1e-07]
[1738886862924,0.05109256,96924.0,96923.0,6.1e-07]
[1738886863135,0.00105256,96924.0,96923.0,6.1e-07]
[1738886863334,0.05105256,96924.0,96923.0,6.1e-07]
[1738886864336,0.00105256,96924.0,96923.0,6.1e-07]
[1738886866040,5.256e-05,96924.0,96923.0,6.1e-07]
[1738886866337,5.256e-05,96924.0,96923.0,0.00200061]
[1738886868139,0.36085256,96924.0,96923.0,0.00200061]
[1738886869536,0.36085256,96924.0,96923.0,0.20733971]
[1738886870338,0.36185256,96924.0,96923.0,0.20633971]
[1738886870932,0.36085256,96924.0,96923.0,0.20633971]
[1738886871134,0.36085256,96924.0,96923.0,0.20733971]
[1738886871853,0.36085256,96924.0,96923.0,0.00100061]
[1738886872535,0.36085256,96924.0,96923.0,6.1e-07]
[1738886872742,0.36085256,96924.0,96923.0,0.00200061]
[1738886872946,0.36085256,96924.0,96923.0,0.20833971]
[1738886873136,0.36085256,96924.0,96923.0,0.20633971]
[1738886873833,0.36185256,96924.0,96923.0,0.20633971]
[1738886874547,0.36085256,96924.0,96923.0,0.20833971]
[1738886875638,5.256e-05,96924.0,96923.0,0.20833971]
[1738886875844,5.256e-05,96924.0,96923.0,0.20633971]
[1738886876045,5.256e-05,96924.0,96923.0,0.20833971]
[1738886877340,5.256e-05,96924.0,96923.0,0.20633971]
[1738886877541,5.256e-05,96924.0,96923.0,0.20733971]
[1738886877736,5.256e-05,96924.0,96923.0,0.00100061]
[1738886879042,5.256e-05,96924.0,96923.0,6.1e-07]
[1738886879252,5.256e-05,96924.0,96923.0,0.00200061]
[1738886879948,5.256e-05,96924.0,96923.0,6.1e-07]
[1738886881751,0.36085256,96924.0,96923.0,6.1e-07]
[1738886882254,0.36185256,96924.0,96923.0,6.1e-07]
[1738886885051,0.66185256,96924.0,96923.0,6.1e-07]
[1738886885252,0.2063562,96915.0,96914.0,0.09813247]
[1738886885445,0.6167962,96915.0,96914.0,0.09813247]
[1738886886349,0.6167962,96915.0,96914.0,0.10113247]
[1738886886850,0.3608,96915.0,96914.0,0.10113247]
[1738886887053,0.41044,96915.0,96914.0,0.10113247]
[1738886887352,0.41044,96915.0,96914.0,0.10213247]
[1738886888758,0.42024848,96915.0,96914.0,0.10213247]
[1738886888949,0.42024848,96915.0,96914.0,0.004]
[1738886891055,0.37060848,96915.0,96914.0,0.004]
[1738886891656,0.42032848,96915.0,96914.0,0.004]
[1738886892358,0.37060848,96915.0,96914.0,0.004]
[1738886892656,0.42036848,96915.0,96914.0,0.004]
[1738886895251,0.33085318,96915.0,96914.0,0.004]
[1738886895557,0.2063753,96906.0,96905.0,0.00015471]
[1738886895747,0.5671753,96906.0,96905.0,0.00015471]
[1738886896664,0.5671753,96906.0,96905.0,0.00215471]
[1738886896961,0.5671753,96906.0,96905.0,0.00815471]
[1738886897257,0.2064073,96891.0,96890.0,0.23838171]
[1738886897561,0.6168473,96891.0,96890.0,0.21788083]
[1738886897955,0.2064222,96884.0,96873.0,0.25778083]
[1738886898157,0.206437,96878.0,96873.0,0.25778083]
[1738886898752,0.3608,96880.0,96873.0,0.25778083]
[1738886899451,0.3608,96880.0,96873.0,0.26178083]
[1738886899959,0.3608,96880.0,96873.0,0.25778083]
[1738886900260,0.3608,96880.0,96873.0,0.26178083]
[1738886900261,0.57702229,96880.0,96873.0,0.26178083]
[1738886900458,0.37058989,96880.0,96873.0,0.26178083]
[1738886900660,0.37058989,96880.0,96873.0,0.22188083]
[1738886900661,0.2064422,96875.0,96873.0,0.22188083]
[1738886900855,0.2064422,96875.0,96873.0,0.22288083]
[1738886901047,0.3608,96878.0,96873.0,0.22288083]
[1738886901651,0.3608,96878.0,96873.0,0.005]
[1738886902053,0.3608,96878.0,96873.0,0.001]
[1738886902256,0.3638,96878.0,96874.0,0.0399]
[1738886902853,0.5702351,96878.0,96874.0,0.0399]
[1738886903258,0.5702351,96878.0,96873.0,0.001]
[1738886903459,0.2064389,96877.0,96873.0,0.001]
[1738886903861,0.3638,96878.0,96873.0,0.001]
[1738886904061,0.2064435,96874.0,96873.0,0.001]
[1738886904368,0.2064483,96872.0,96869.0,0.0001548]
[1738886904568,0.3608,96870.0,96869.0,0.0001548]
[1738886906564,0.3618,96870.0,96869.0,0.0001548]
[1738886908666,0.37181255,96870.0,96869.0,0.206609]
[1738886910267,0.37181255,96870.0,96869.0,0.0011548]
[1738886910268,0.37081255,96870.0,96869.0,0.0011548]
[1738886911668,0.37081255,96870.0,96869.0,0.0001548]
[1738886911968,0.3608,96878.0,96869.0,0.0021548]
[1738886912373,0.3608,96878.0,96869.0,0.0001548]
[1738886912574,0.3608,96878.0,96870.0,0.2064507]
[1738886912968,0.37070028,96878.0,96870.0,0.2064507]
[1738886913276,0.37070028,96878.0,96872.0,0.2064464]
[1738886913574,0.37070028,96878.0,96873.0,0.0385]
[1738886914567,0.00990028,96878.0,96876.0,0.2064373]
[1738886914768,0.04932,96886.0,96878.0,0.206435]
[1738886915560,0.05917466,96886.0,96878.0,0.206435]
[1738886915968,0.05917466,96886.0,96877.0,0.0405]
[1738886916161,0.2064329,96879.0,96877.0,0.0405]
[1738886916471,0.05917466,96886.0,96877.0,0.0405]
[1738886916773,0.05917466,96886.0,96877.0,0.2469362]
[1738886916972,0.05917466,96886.0,96877.0,0.0405]
[1738886917370,0.05917466,96886.0,96879.0,0.2064319]
[1738886918177,0.05917466,96886.0,96877.0,0.0405]
[1738886918375,0.3608,96881.0,96877.0,0.0465]
[1738886918877,0.206421,96885.0,96877.0,0.0405]
[1738886919262,0.2064254,96883.0,96877.0,0.0405]
[1738886919468,0.3608,96883.0,96877.0,0.0405]
[1738886919964,0.3608,96883.0,96873.0,0.0385]
[1738886920167,0.48377211,96883.0,96873.0,0.0385]
[1738886920973,0.3608,96874.0,96873.0,0.0385]
[1738886921470,0.206452,96870.0,96869.0,0.0001548]
[1738886923983,0.21617142,96870.0,96869.0,0.0001548]
[1738886925083,0.00971942,96870.0,96869.0,0.0001548]
[1738886925283,0.04928,96873.0,96869.0,0.0001548]
[1738886925985,0.04932,96872.0,96869.0,0.0001548]
[1738886926287,0.2557691,96872.0,96869.0,0.0001548]
[1738886926484,0.2064511,96871.0,96869.0,0.0001548]
[1738886928184,0.2104511,96871.0,96869.0,0.0001548]
[1738886928983,0.2064511,96871.0,96869.0,0.0001548]
[1738886929184,0.2104511,96871.0,96869.0,0.0001548]
[1738886929580,0.2114511,96871.0,96869.0,0.0001548]
[1738886930487,0.2104511,96871.0,96869.0,0.0001548]
[1738886930679,0.2114511,96871.0,96869.0,0.0001548]
[1738886931278,0.2064746,96860.0,96858.0,0.0411]
[1738886931484,0.2064827,96856.0,96847.0,0.0397]
[1738886933286,0.2064857,96855.0,96847.0,0.0407]
[1738886934590,0.3608,96859.0,96847.0,0.0447]
[1738886934891,0.3608,96859.0,96852.0,0.2064884]
[1738886936090,0.37082407,96859.0,96847.0,0.2501996]
[1738886936285,0.01002407,96859.0,96847.0,0.2501996]
[1738886936485,0.0001548,96861.0,96847.0,0.2501996]
[1738886937086,0.0001548,96861.0,96847.0,0.0437]
[1738886937285,0.0001548,96861.0,96850.0,0.206493]
[1738886937791,0.01023738,96861.0,96850.0,0.206493]
[1738886938092,0.01023738,96861.0,96852.0,0.002]
[1738886938487,0.01023738,96861.0,96850.0,0.208493]
[1738886938982,0.01023738,96861.0,96850.0,0.207493]
[1738886939182,0.01023738,96861.0,96850.0,0.001]
[1738886940384,0.12297211,96860.0,96850.0,0.001]
[1738886940989,0.2064871,96854.0,96850.0,0.001]
[1738886941179,0.2064871,96854.0,96847.0,0.0397]
[1738886941580,0.12297211,96860.0,96847.0,0.0397]
[1738886941996,0.2064837,96856.0,96847.0,0.0397]
[1738886942491,0.12297211,96860.0,96847.0,0.0407]
[1738886942679,0.3608,96849.0,96847.0,0.0407]
[1738886942884,0.5672978,96849.0,96847.0,0.0407]
[1738886943495,0.2064978,96849.0,96847.0,0.0407]
[1738886944404,0.04924,96856.0,96847.0,0.0407]
[1738886944897,0.04924,96856.0,96849.0,0.2064957]
[1738886945486,0.04924,96856.0,96852.0,0.2064899]
[1738886945792,0.001,96856.0,96855.0,0.2064834]
[1738886946092,0.0001548,96861.0,96851.0,0.3608]
[1738886946286,0.3608,96879.0,96851.0,0.582]
[1738886946490,0.3608,96879.0,96861.0,0.2064695]
[1738886946690,0.52492276,96869.0,96861.0,0.2064695]
[1738886946893,0.37051168,96869.0,96861.0,0.2064695]
[1738886947494,0.37051168,96869.0,96851.0,0.5834]
[1738886947690,0.37051168,96869.0,96864.0,0.2064628]
[1738886947997,0.37051168,96869.0,96851.0,0.582]
[1738886947998,0.37051168,96869.0,96867.0,0.2064573]
[1738886948386,0.37051168,96869.0,96865.0,0.039]
[1738886949191,0.2064605,96866.0,96865.0,0.039]
[1738886950301,0.37651168,96869.0,96865.0,0.039]
[1738886951291,0.37651168,96869.0,96861.0,0.18472404]
[1738886951492,0.005,96866.0,96861.0,0.18472404]
[1738886951998,0.007,96866.0,96861.0,0.18472404]
[1738886952199,0.002,96866.0,96861.0,0.18472404]
[1738886952397,0.5672691,96862.0,96861.0,0.16447297]
[1738886952602,0.5672691,96862.0,96861.0,0.06611225]
[1738886953194,0.3608,96862.0,96861.0,0.06611225]
[1738886953791,0.3608,96862.0,96842.0,0.73023433]